[Event "Black Sea Grand Prix Amaks Resort Blitz 2021"]
[White "Aleksandrov, Danila"]
[Black "Gochelashvili, David"]
[WhiteFideId "4133650"]
[BlackFideId "4161203"]
[WhiteElo "2086"]
[BlackElo "2332"]
[Result "0-1"]
[Round "05"]
[TimeControl "300+2"]
[Date "2021.09.09"]
[WhiteClock "0:00:57"]
[BlackClock "0:00:45"]

1. e4 {[%clk 0:15:20]}  c5 {[%clk 0:15:20]} 2. f4 {[%clk 0:15:23]}  Nc6 {[%clk 0:15:19]} 3. Nf3 {[%clk 0:15:33]}  g6 {[%clk 0:15:19]} 4. Bb5 {[%clk 0:15:39]}  Bg7 {[%clk 0:15:15]} 5. O-O {[%clk 0:15:46]}  Nd4 {[%clk 0:14:23]} 6. Nxd4 {[%clk 0:15:49]}  cxd4 {[%clk 0:14:30]} 7. Qf3 {[%clk 0:15:25]}  a6 {[%clk 0:14:07]} 8. Bc4 {[%clk 0:14:38]}  d6 {[%clk 0:09:29]} 9. f5 {[%clk 0:13:59]}  Nf6 {[%clk 0:08:52]} 10. g4 {[%clk 0:13:31]}  d5 {[%clk 0:05:35]} 11. Bxd5 {[%clk 0:08:06]}  gxf5 {[%clk 0:05:04]} 12. Bxf7+ {[%clk 0:06:17]}  Kxf7 {[%clk 0:05:14]} 13. g5 {[%clk 0:06:26]}  Nxe4 {[%clk 0:03:56]} 14. Qxe4 {[%clk 0:06:24]}  Rf8 {[%clk 0:04:00]} 15. d3 {[%clk 0:05:58]}  Kg8 {[%clk 0:04:07]} 16. Qh4 {[%clk 0:04:56]}  b5 {[%clk 0:03:42]} 17. g6 {[%clk 0:03:42]}  hxg6 {[%clk 0:03:38]} 18. Bg5 {[%clk 0:03:51]}  Qd5 {[%clk 0:03:35]} 19. Nd2 {[%clk 0:03:45]}  Bb7 {[%clk 0:03:26]} 20. Nf3 {[%clk 0:03:30]}  e5 {[%clk 0:03:21]} 21. Be7 {[%clk 0:03:12]}  Rf7 {[%clk 0:02:58]} 22. Rae1 {[%clk 0:03:19]}  Re8 {[%clk 0:02:56]} 23. Bb4 {[%clk 0:03:07]}  Bf6 {[%clk 0:02:10]} 24. Qg3 {[%clk 0:03:04]}  g5 {[%clk 0:01:41]} 25. Re2 {[%clk 0:02:12]}  g4 {[%clk 0:01:28]} 26. Nh4 {[%clk 0:01:00]}  f4 {[%clk 0:00:37]} 27. Rxf4 {[%clk 0:00:51]}  Qh1+ {[%clk 0:00:36]} 28. Kf2 {[%clk 0:00:57]}  Bxh4 {[%clk 0:00:45]} 0-1

[Event "First Serbian Women's League 2021"]
[White "Manakova, Maria"]
[Black "Rakic Vulicevic, Marija"]
[WhiteFideId "927007"]
[BlackFideId "936286"]
[WhiteElo "2250"]
[BlackElo "2314"]
[Result "1-0"]
[Round "01"]
[TimeControl "5400+30"]
[Date "2021.09.07"]
[WhiteClock "0:03:43"]
[BlackClock "0:02:28"]

1. e4 {[%clk 1:30:55]}  c5 {[%clk 1:30:53]} 2. f4 {[%clk 1:29:47]}  g6 {[%clk 1:28:35]} 3. Bc4 {[%clk 1:26:36]}  Bg7 {[%clk 1:26:50]} 4. Nf3 {[%clk 1:27:02]}  Nc6 {[%clk 1:26:50]} 5. c3 {[%clk 1:22:52]}  e6 {[%clk 1:21:42]} 6. e5 {[%clk 1:19:10]}  d5 {[%clk 1:10:33]} 7. Bb3 {[%clk 1:14:39]}  Nh6 {[%clk 1:05:00]} 8. d4 {[%clk 1:12:20]}  Nf5 {[%clk 1:04:25]} 9. Na3 {[%clk 1:01:49]}  Bf8 {[%clk 1:01:29]} 10. Nc2 {[%clk 0:59:33]}  h5 {[%clk 0:50:49]} 11. Ne3 {[%clk 0:57:40]}  Nh4 {[%clk 0:45:32]} 12. O-O {[%clk 0:51:35]}  Nxf3+ {[%clk 0:45:45]} 13. Rxf3 {[%clk 0:51:48]}  Bd7 {[%clk 0:42:09]} 14. dxc5 {[%clk 0:51:48]}  Bxc5 {[%clk 0:42:33]} 15. Kh1 {[%clk 0:43:03]}  Ne7 {[%clk 0:42:40]} 16. Rh3 {[%clk 0:39:16]}  Bc6 {[%clk 0:41:34]} 17. Ng4 {[%clk 0:36:35]}  Ng8 {[%clk 0:39:57]} 18. Be3 {[%clk 0:36:39]}  Qb6 {[%clk 0:39:49]} 19. Bxc5 {[%clk 0:36:29]}  Qxc5 {[%clk 0:40:15]} 20. Qd4 {[%clk 0:35:51]}  b6 {[%clk 0:36:48]} 21. Bd1 {[%clk 0:33:22]}  a5 {[%clk 0:35:53]} 22. Be2 {[%clk 0:27:13]}  Kf8 {[%clk 0:35:00]} 23. Qd2 {[%clk 0:24:07]}  a4 {[%clk 0:31:57]} 24. Rd1 {[%clk 0:12:30]}  Kg7 {[%clk 0:26:40]} 25. Ne3 {[%clk 0:12:45]}  Bb5 {[%clk 0:27:03]} 26. Bxb5 {[%clk 0:11:54]}  Qxb5 {[%clk 0:27:30]} 27. f5 {[%clk 0:10:17]}  Nh6 {[%clk 0:27:30]} 28. f6+ {[%clk 0:09:04]}  Kg8 {[%clk 0:14:44]} 29. Rh4 {[%clk 0:05:58]}  Qc5 {[%clk 0:14:05]} 30. a3 {[%clk 0:03:43]}  Qc7 {[%clk 0:13:18]} 31. Qd4 {[%clk 0:04:02]}  Ra5 {[%clk 0:13:42]} 32. Kg1 {[%clk 0:04:09]}  Rc5 {[%clk 0:13:35]} 33. Qf4 {[%clk 0:04:02]}  Rb5 {[%clk 0:12:40]} 34. Rxh5 {[%clk 0:02:59]}  gxh5 {[%clk 0:11:24]} 35. Qg5+ {[%clk 0:02:59]}  Kf8 {[%clk 0:11:49]} 36. Qg7+ {[%clk 0:03:44]}  Ke8 {[%clk 0:12:16]} 37. Qxh8+ {[%clk 0:03:44]}  Kd7 {[%clk 0:12:42]} 38. Qxh6 {[%clk 0:02:23]}  Rxb2 {[%clk 0:12:42]} 39. Qxh5 {[%clk 0:01:14]}  Kc8 {[%clk 0:10:45]} 40. Qg5 {[%clk 0:00:57]}  Kb7 {[%clk 0:09:29]} 41. Rd3 {[%clk 0:20:20]}  Rb3 {[%clk 0:32:47]} 42. h4 {[%clk 0:16:48]}  Rxa3 {[%clk 0:31:41]} 43. Nd1 {[%clk 0:11:52]}  Ra1 {[%clk 0:24:43]} 44. Qe3 {[%clk 0:07:50]}  a3 {[%clk 0:24:15]} 45. Qd4 {[%clk 0:07:42]}  a2 {[%clk 0:23:30]} 46. Rd2 {[%clk 0:08:00]}  Qc6 {[%clk 0:12:51]} 47. Rb2 {[%clk 0:05:27]}  Kc7 {[%clk 0:11:43]} 48. Kh2 {[%clk 0:05:34]}  Qc5 {[%clk 0:08:08]} 49. Qxc5+ {[%clk 0:05:18]}  bxc5 {[%clk 0:08:36]} 50. h5 {[%clk 0:05:18]}  d4 {[%clk 0:05:07]} 51. cxd4 {[%clk 0:04:20]}  c4 {[%clk 0:05:33]} 52. h6 {[%clk 0:04:03]}  Rxd1 {[%clk 0:05:10]} 53. Rxa2 {[%clk 0:04:28]}  Rxd4 {[%clk 0:05:32]} 54. Kg3 {[%clk 0:03:49]}  Kb6 {[%clk 0:02:28]} 55. Ra8 {[%clk 0:03:36]}  Rd1 {[%clk 0:02:28]} 56. h7 {[%clk 0:03:43]} 1-0

[Event "Black Sea Grand Prix Pantikapei 2021"]
[White "Bolikov, Nicolai"]
[Black "Potapova, Margarita"]
[WhiteFideId "24270059"]
[BlackFideId "14126869"]
[WhiteElo "1696"]
[BlackElo "2214"]
[Result "0-1"]
[Round "01"]
[TimeControl "300+2"]
[Date "2021.09.12"]
[WhiteClock "0:26:37"]
[BlackClock "0:07:54"]

1. e4 {[%clk 1:30:52]}  c5 {[%clk 1:30:57]} 2. f4 {[%clk 1:31:17]}  d5 {[%clk 1:30:54]} 3. exd5 {[%clk 1:31:41]}  Nf6 {[%clk 1:30:52]} 4. Bb5+ {[%clk 1:30:15]}  Nbd7 {[%clk 1:31:17]} 5. c4 {[%clk 1:30:10]}  g6 {[%clk 1:23:58]} 6. Nf3 {[%clk 1:30:16]}  Bg7 {[%clk 1:23:57]} 7. Ne5 {[%clk 1:26:30]}  O-O {[%clk 1:23:35]} 8. O-O {[%clk 1:23:04]}  Nxe5 {[%clk 1:20:30]} 9. fxe5 {[%clk 1:23:31]}  Ng4 {[%clk 1:20:38]} 10. d4 {[%clk 1:10:31]}  cxd4 {[%clk 1:20:45]} 11. e6 {[%clk 1:10:42]}  Ne5 {[%clk 1:16:08]} 12. exf7+ {[%clk 1:08:53]}  Kh8 {[%clk 1:16:03]} 13. Bf4 {[%clk 1:06:32]}  a6 {[%clk 1:10:39]} 14. Bxe5 {[%clk 1:06:38]}  Bxe5 {[%clk 1:11:05]} 15. Qe2 {[%clk 1:06:33]}  Qc7 {[%clk 1:06:40]} 16. Be8 {[%clk 1:06:32]}  d3 {[%clk 0:39:44]} 17. Qxd3 {[%clk 1:05:52]}  Bxb2 {[%clk 0:38:57]} 18. Nd2 {[%clk 1:05:38]}  Bxa1 {[%clk 0:36:18]} 19. Rxa1 {[%clk 1:06:09]}  Qe5 {[%clk 0:36:38]} 20. Rc1 {[%clk 1:02:53]}  Bf5 {[%clk 0:32:00]} 21. Qc3 {[%clk 1:03:08]}  Qxc3 {[%clk 0:31:55]} 22. Rxc3 {[%clk 1:03:38]}  Rd8 {[%clk 0:24:14]} 23. Rb3 {[%clk 0:54:03]}  b5 {[%clk 0:22:57]} 24. cxb5 {[%clk 0:53:31]}  axb5 {[%clk 0:22:59]} 25. Rxb5 {[%clk 0:52:11]}  Bd7 {[%clk 0:20:51]} 26. Bxd7 {[%clk 0:52:32]}  Rxd7 {[%clk 0:21:19]} 27. Nc4 {[%clk 0:48:53]}  Kg7 {[%clk 0:18:57]} 28. h3 {[%clk 0:48:17]}  Rfd8 {[%clk 0:17:30]} 29. Nb6 {[%clk 0:48:14]}  Rc7 {[%clk 0:16:07]} 30. a4 {[%clk 0:48:22]}  Rc2 {[%clk 0:16:22]} 31. a5 {[%clk 0:48:20]}  Ra2 {[%clk 0:16:47]} 32. Nc4 {[%clk 0:45:46]}  Kxf7 {[%clk 0:16:42]} 33. Ne5+ {[%clk 0:46:09]}  Kf6 {[%clk 0:15:24]} 34. Nc6 {[%clk 0:46:18]}  Rd7 {[%clk 0:14:08]} 35. Rb6 {[%clk 0:46:31]}  Rd6 {[%clk 0:11:03]} 36. a6 {[%clk 0:43:03]}  h5 {[%clk 0:11:04]} 37. a7 {[%clk 0:42:26]}  Rxa7 {[%clk 0:10:34]} 38. Rb8 {[%clk 0:42:02]}  Ra1+ {[%clk 0:10:39]} 39. Kh2 {[%clk 0:38:06]}  Rxd5 {[%clk 0:08:55]} 40. Rf8+ {[%clk 0:37:34]}  Ke6 {[%clk 0:09:01]} 41. Nd8+ {[%clk 0:35:48]}  Kd7 {[%clk 0:08:49]} 42. Nf7 {[%clk 0:34:24]}  e6 {[%clk 0:08:48]} 43. Nh8 {[%clk 0:33:29]}  g5 {[%clk 0:08:43]} 44. Rg8 {[%clk 0:32:43]}  h4 {[%clk 0:07:30]} 45. Rg7+ {[%clk 0:31:56]}  Kc6 {[%clk 0:07:12]} 46. Rf7 {[%clk 0:30:13]}  Rdd1 {[%clk 0:07:31]} 47. g3 {[%clk 0:26:37]}  Ra2+ {[%clk 0:07:54]} 0-1

[Event "Black Sea Grand Prix Pantikapei Rapid 2021"]
[White "Zhura, Sergei"]
[Black "Truskavetsky, Alexandr"]
[WhiteFideId "13518178"]
[BlackFideId "14108577"]
[WhiteElo "1608"]
[BlackElo "2317"]
[Result "1-0"]
[Round "01"]
[TimeControl "900+10"]
[Date "2021.09.21"]
[WhiteClock "0:03:18"]
[BlackClock "0:00:11"]

1. e4 {[%clk 0:15:20]}  c5 {[%clk 0:15:20]} 2. f4 {[%clk 0:15:30]}  d5 {[%clk 0:15:17]} 3. e5 {[%clk 0:15:27]}  Nc6 {[%clk 0:15:27]} 4. Nf3 {[%clk 0:15:37]}  Bg4 {[%clk 0:15:37]} 5. c3 {[%clk 0:15:47]}  d4 {[%clk 0:15:45]} 6. Bb5 {[%clk 0:15:58]}  Qd5 {[%clk 0:15:22]} 7. O-O {[%clk 0:15:39]}  e6 {[%clk 0:15:32]} 8. c4 {[%clk 0:15:34]}  Qd7 {[%clk 0:15:31]} 9. d3 {[%clk 0:15:24]}  Nge7 {[%clk 0:15:33]} 10. h3 {[%clk 0:15:27]}  Bxf3 {[%clk 0:15:41]} 11. Qxf3 {[%clk 0:15:31]}  h5 {[%clk 0:15:47]} 12. Nd2 {[%clk 0:15:26]}  h4 {[%clk 0:15:09]} 13. Ne4 {[%clk 0:15:25]}  Nf5 {[%clk 0:15:16]} 14. Bd2 {[%clk 0:14:45]}  Be7 {[%clk 0:15:16]} 15. a3 {[%clk 0:14:39]}  a6 {[%clk 0:15:07]} 16. Ba4 {[%clk 0:14:39]}  Rb8 {[%clk 0:15:08]} 17. Rab1 {[%clk 0:14:29]}  b5 {[%clk 0:15:16]} 18. cxb5 {[%clk 0:14:23]}  axb5 {[%clk 0:15:24]} 19. Bc2 {[%clk 0:14:16]}  O-O {[%clk 0:15:23]} 20. Qg4 {[%clk 0:13:03]}  Rfd8 {[%clk 0:15:08]} 21. Nf6+ {[%clk 0:12:46]}  Bxf6 {[%clk 0:15:16]} 22. exf6 {[%clk 0:12:54]}  g6 {[%clk 0:15:22]} 23. Rbe1 {[%clk 0:12:35]}  Qd5 {[%clk 0:12:48]} 24. Qg5 {[%clk 0:10:42]}  Rd6 {[%clk 0:10:32]} 25. Bd1 {[%clk 0:10:44]}  c4 {[%clk 0:10:31]} 26. Bf3 {[%clk 0:10:25]}  Qc5 {[%clk 0:10:31]} 27. Be4 {[%clk 0:09:43]}  c3 {[%clk 0:10:10]} 28. bxc3 {[%clk 0:09:00]}  dxc3+ {[%clk 0:10:19]} 29. Be3 {[%clk 0:09:08]}  Ncd4 {[%clk 0:09:50]} 30. Bxf5 {[%clk 0:08:34]}  Qxf5 {[%clk 0:09:52]} 31. Qxh4 {[%clk 0:07:41]}  Qxd3 {[%clk 0:05:43]} 32. g4 {[%clk 0:06:33]}  Nf5 {[%clk 0:02:32]} 33. gxf5 {[%clk 0:06:07]}  Qxf5 {[%clk 0:02:42]} 34. Bc1 {[%clk 0:05:01]}  Qc5+ {[%clk 0:01:38]} 35. Rf2 {[%clk 0:04:19]}  Rd3 {[%clk 0:00:49]} 36. Qh6 {[%clk 0:03:32]}  Rg3+ {[%clk 0:00:40]} 37. Kf1 {[%clk 0:03:40]}  Qf8 {[%clk 0:00:41]} 38. Qh4 {[%clk 0:03:24]}  Rd3 {[%clk 0:00:45]} 39. f5 {[%clk 0:03:12]}  exf5 {[%clk 0:00:21]} 40. Bh6 {[%clk 0:03:18]}  Rd4 {[%clk 0:00:11]} 1-0

[Event "Vera Menchik Memorial 2021"]
[White "Vojta, Tomas"]
[Black "Picek, Miroslav"]
[WhiteFideId "308781"]
[BlackFideId "325198"]
[WhiteElo "2395"]
[BlackElo "1863"]
[Result "1-0"]
[Round "01"]
[TimeControl "900+10"]
[Date "2021.09.28"]
[WhiteClock "0:04:36"]
[BlackClock "0:00:35"]

1. e4 {[%clk 0:12:11]}  c5 {[%clk 0:11:40]} 2. f4 {[%clk 0:12:11]}  d5 {[%clk 0:11:40]} 3. exd5 {[%clk 0:12:11]}  Qxd5 {[%clk 0:11:40]} 4. Nc3 {[%clk 0:12:11]}  Qd8 {[%clk 0:11:40]} 5. Nf3 {[%clk 0:12:11]}  Nc6 {[%clk 0:11:19]} 6. Ne5 {[%clk 0:11:52]}  Nxe5 {[%clk 0:10:48]} 7. fxe5 {[%clk 0:11:53]}  Bd7 {[%clk 0:10:36]} 8. Bc4 {[%clk 0:11:17]}  e6 {[%clk 0:09:56]} 9. O-O {[%clk 0:11:07]}  Bc6 {[%clk 0:09:27]} 10. d3 {[%clk 0:11:01]}  Qd4+ {[%clk 0:09:12]} 11. Kh1 {[%clk 0:10:59]}  O-O-O {[%clk 0:08:18]} 12. Qe2 {[%clk 0:10:37]}  Qd7 {[%clk 0:06:09]} 13. a4 {[%clk 0:10:24]}  Nh6 {[%clk 0:06:01]} 14. Bxh6 {[%clk 0:09:50]}  gxh6 {[%clk 0:06:03]} 15. Ne4 {[%clk 0:09:48]}  Bxe4 {[%clk 0:05:03]} 16. Qxe4 {[%clk 0:09:47]}  Bg7 {[%clk 0:04:11]} 17. a5 {[%clk 0:09:32]}  Kb8 {[%clk 0:03:30]} 18. a6 {[%clk 0:09:25]}  b6 {[%clk 0:02:57]} 19. Rf3 {[%clk 0:08:55]}  Rhf8 {[%clk 0:02:54]} 20. Raf1 {[%clk 0:08:55]}  Qc7 {[%clk 0:02:06]} 21. Re1 {[%clk 0:07:57]}  Rd4 {[%clk 0:01:56]} 22. Qxh7 {[%clk 0:07:48]}  Bxe5 {[%clk 0:01:37]} 23. Bxe6 {[%clk 0:07:16]}  f6 {[%clk 0:01:37]} 24. Qxc7+ {[%clk 0:06:26]}  Bxc7 {[%clk 0:01:35]} 25. Bc4 {[%clk 0:06:26]}  Bd8 {[%clk 0:01:00]} 26. g3 {[%clk 0:05:52]}  Kc7 {[%clk 0:01:02]} 27. Kg2 {[%clk 0:05:45]}  Kc6 {[%clk 0:00:48]} 28. Re6+ {[%clk 0:05:39]}  Kd7 {[%clk 0:00:51]} 29. Rfe3 {[%clk 0:05:29]}  Rf7 {[%clk 0:00:46]} 30. c3 {[%clk 0:05:14]}  Rg4 {[%clk 0:00:38]} 31. Rxb6 {[%clk 0:04:36]}  axb6 {[%clk 0:00:35]} 1-0